lending/lending_fUSD_20240110
["ID","MTS","AMOUNT","RATE_DAILY","PERIOD"]
[311052789,1704891055680,-500.0,0.0003041,2]
[311052790,1704891055689,-500.0,0.0003041,2]
[311052791,1704891055699,-500.0,0.0003041,2]
[311052792,1704891055708,-609.55097877,0.0003041,2]
[311052793,1704891055717,-500.0,0.0003041,2]
[311052794,1704891055737,-500.0,0.0003041,2]
[311052795,1704891055748,-514.28557539,0.0003041,2]
[311052796,1704891055758,-1150.48,0.0003041,2]
[311052797,1704891055767,-500.0,0.0003041,2]
[311052798,1704891055777,-500.0,0.0003041,2]
[311052799,1704891055787,-500.0,0.0003041,2]
[311052800,1704891055797,-500.0,0.0003041,2]
[311052801,1704891055806,-856.23,0.0003041,2]
[311052802,1704891055816,-500.0,0.0003041,2]
[311052803,1704891055825,-500.0,0.0003041,2]
[311052804,1704891055835,-943.83,0.0003041,2]
[311052805,1704891055844,-500.0,0.0003041,2]
[311052806,1704891055858,-677.16,0.0003041,2]
[311052807,1704891055868,-500.0,0.0003041,2]
[311052808,1704891055878,-1357.7,0.0003041,2]
[311052809,1704891055887,-944.54,0.0003041,2]
[311052810,1704891055896,-819.95,0.0003041,2]
[311052811,1704891055906,-500.0,0.0003041,2]
[311052812,1704891055915,-613.7,0.0003041,2]
[311052813,1704891055926,-845.23,0.0003041,2]
[311052814,1704891055935,-500.0,0.0003041,2]
[311052815,1704891055945,-1144.78,0.0003041,2]
[311052816,1704891055955,-572.57,0.0003041,2]
[311052817,1704891056132,-523.04,0.0003041,2]
[311052818,1704891056142,-500.0,0.0003041,2]
[311052819,1704891056151,-981.88,0.0003041,2]
[311052820,1704891056161,-628.96542662,0.0003041,2]
[311052821,1704891056170,-500.0,0.0003041,2]
[311052822,1704891056180,-500.0,0.0003041,2]
[311052823,1704891056189,-500.0,0.0003041,2]
[311052824,1704891056199,-500.0,0.0003041,2]
[311052825,1704891056209,-500.0,0.0003041,2]
[311052826,1704891056218,-500.0,0.0003041,2]
[311052827,1704891056227,-1009.3,0.0003041,2]
[311052828,1704891056237,-500.0,0.0003041,2]
[311052829,1704891056248,-804.49,0.0003041,2]
[311052830,1704891056257,-500.0,0.0003041,2]
[311052831,1704891056267,-679.35,0.0003041,2]
[311052832,1704891056276,-688.65,0.0003041,2]
[311052833,1704891056286,-626.97,0.0003041,2]
[311052834,1704891056295,-1228.41,0.0003041,2]
[311052835,1704891056309,-500.0,0.0003041,2]
[311052836,1704891056319,-309.01309708,0.0003041,2]
[311052837,1704891056328,-835.39,0.0003041,2]
[311052838,1704891056338,-500.0,0.0003041,2]
[311052839,1704891056350,-500.0,0.0003041,2]
[311052840,1704891056360,-567.03,0.0003041,2]
[311052841,1704891056369,-664.11,0.0003041,2]
[311052842,1704891056384,-699.18,0.0003041,2]
[311052843,1704891056395,-729.83,0.0003041,2]
[311052844,1704891056406,-500.0,0.0003041,2]
[311052845,1704891056415,-574.64,0.0003041,2]
[311052846,1704891056426,-847.62,0.0003041,2]
[311052847,1704891056437,-500.0,0.0003041,2]
[311052848,1704891056452,-1277.67,0.0003041,2]
[311052849,1704891056462,-755.08,0.0003041,2]
[311052850,1704891056472,-1050.74,0.0003041,2]
[311052851,1704891056482,-1281.13,0.0003041,2]
[311052852,1704891056493,-500.0,0.0003041,2]
[311052853,1704891056503,-667.72,0.0003041,2]
[311052854,1704891056512,-1129.59,0.0003041,2]
[311052855,1704891056523,-500.0,0.0003041,2]
[311052856,1704891056533,-1299.52,0.0003041,2]
[311052857,1704891056543,-500.0,0.0003041,2]
[311052858,1704891056552,-500.0,0.0003041,2]
[311052859,1704891056562,-505.28068585,0.0003041,2]
[311052860,1704891056572,-500.0,0.0003041,2]
[311052861,1704891056582,-665.14,0.0003041,2]
[311052862,1704891056591,-1462.15,0.0003041,2]
[311052863,1704891056604,-883.1,0.0003041,2]
[311052864,1704891056613,-736.72,0.0003041,2]
[311052865,1704891056624,-500.0,0.0003041,2]
[311052866,1704891056636,-932.0,0.0003041,2]
[311052867,1704891056646,-500.0,0.0003041,2]
[311052868,1704891056656,-933.85,0.0003041,2]
[311052869,1704891056667,-500.0,0.0003041,2]
[311052870,1704891056677,-500.0,0.0003041,2]
[311052871,1704891056686,-715.55,0.0003041,2]
[311052872,1704891056697,-508.71381977,0.0003041,2]
[311052873,1704891056707,-1106.31,0.0003041,2]
[311052874,1704891056717,-500.0,0.0003041,2]
[311052875,1704891056726,-500.0,0.0003041,2]
[311052876,1704891056736,-616.84,0.0003041,2]
[311052877,1704891056746,-500.0,0.0003041,2]
[311052878,1704891056755,-500.0,0.0003041,2]
[311052879,1704891056765,-989.02,0.0003041,2]
[311052880,1704891056775,-500.0,0.0003041,2]
[311052881,1704891056785,-500.0,0.0003041,2]
[311052882,1704891056795,-1195.8,0.0003041,2]
[311052883,1704891056805,-1108.12,0.0003041,2]
[311052884,1704891056815,-1806.82,0.0003041,2]
[311052885,1704891056824,-500.0,0.0003041,2]
[311052886,1704891056834,-1387.71,0.0003041,2]
[311052887,1704891056843,-915.35,0.0003041,2]
[311052888,1704891056858,-500.0,0.0003041,2]
[311052889,1704891056868,-1503.57,0.0003041,2]
[311052890,1704891056877,-728.24,0.0003041,2]
[311052891,1704891056887,-1262.12,0.0003041,2]
[311052892,1704891056896,-556.89,0.0003041,2]
[311052893,1704891056907,-500.0,0.0003041,2]
[311052894,1704891056916,-749.59,0.0003041,2]
[311052895,1704891056926,-500.0,0.0003041,2]
[311052896,1704891056936,-500.0,0.0003041,2]
[311052897,1704891056945,-500.0,0.0003041,2]
[311052898,1704891056955,-968.99,0.0003041,2]
[311052899,1704891056965,-1148.53,0.0003041,2]
[311052900,1704891056974,-500.0,0.0003041,2]
[311052901,1704891056983,-500.0,0.0003041,2]
[311052902,1704891056993,-626.90481093,0.0003041,2]
[311052903,1704891057003,-1486.97,0.0003041,2]
[311052904,1704891057012,-1273.18,0.0003041,2]
[311052905,1704891057022,-507.2489981,0.0003041,2]
[311052906,1704891057031,-500.0,0.0003041,2]
[311052907,1704891057041,-1334.19,0.0003041,2]
[311052908,1704891057051,-500.0,0.0003041,2]
[311052909,1704891057061,-500.0,0.0003041,2]
[311052910,1704891057071,-810.04,0.0003041,2]
[311052911,1704891057080,-500.0,0.0003041,2]
[311052912,1704891057092,-945.46,0.0003041,2]
[311052913,1704891057108,-884.9,0.0003041,2]
[311052914,1704891057119,-566.84,0.0003041,2]
[311052915,1704891057128,-500.0,0.0003041,2]
[311052916,1704891057139,-500.0,0.0003041,2]
[311052917,1704891057149,-659.65,0.0003041,2]
[311052918,1704891057159,-500.0,0.0003041,2]
[311052919,1704891057169,-1698.48,0.0003041,2]
[311052920,1704891057180,-1658.69,0.0003041,2]
[311052921,1704891057191,-1894.62,0.0003041,2]
[311052922,1704891057201,-530.43,0.0003041,2]
[311052923,1704891057212,-648.28,0.0003041,2]
[311052924,1704891057222,-507.54,0.0003041,2]
[311052925,1704891057232,-716.26,0.0003041,2]
[311052926,1704891057242,-635.25,0.0003041,2]
[311052927,1704891057253,-500.0,0.0003041,2]
[311052928,1704891057263,-500.0,0.0003041,2]
[311052929,1704891057273,-500.0,0.0003041,2]
[311052930,1704891057283,-659.2,0.0003041,2]
[311052931,1704891057294,-1075.0,0.0003041,2]
[311052932,1704891057306,-912.69,0.0003041,2]
[311052933,1704891057316,-500.0,0.0003041,2]
[311052934,1704891057326,-500.0,0.0003041,2]
[311052935,1704891057336,-500.0,0.0003041,2]
[311052936,1704891057346,-994.89,0.0003041,2]
[311052937,1704891057359,-500.0,0.0003041,2]
[311052938,1704891057370,-536.25,0.0003041,2]
[311052939,1704891057379,-535.04,0.0003041,2]
[311052940,1704891057389,-763.92,0.0003041,2]
[311052941,1704891057399,-1507.5,0.0003041,2]
[311052942,1704891057409,-295.4598126,0.0003041,2]
[311052943,1704891057418,-1352.86,0.0003041,2]
[311052944,1704891057428,-1144.7,0.0003041,2]
[311052945,1704891057439,-500.0,0.0003041,2]
[311052946,1704891057449,-763.85,0.0003041,2]
[311052947,1704891057459,-500.0,0.0003041,2]
[311052948,1704891057468,-500.0,0.0003041,2]
[311052949,1704891057478,-1058.85,0.0003041,2]
[311052950,1704891057488,-500.0,0.0003041,2]
[311052951,1704891057497,-592.06,0.0003041,2]
[311052952,1704891057507,-500.0,0.0003041,2]
[311052953,1704891057518,-500.0,0.0003041,2]
[311052954,1704891057527,-982.41,0.0003041,2]
[311052955,1704891057537,-500.0,0.0003041,2]
[311052956,1704891057547,-500.0,0.0003041,2]
[311052957,1704891057557,-500.0,0.0003041,2]
[311052958,1704891057568,-960.45,0.0003041,2]
[311052959,1704891057578,-500.0,0.0003041,2]
[311052960,1704891057588,-1268.39,0.0003041,2]
[311052961,1704891057598,-500.0,0.0003041,2]
[311052962,1704891057607,-1176.82,0.0003041,2]
[311052963,1704891057617,-500.0,0.0003041,2]
[311052964,1704891057627,-500.0,0.0003041,2]
[311052965,1704891057640,-1591.28,0.0003041,2]
[311052966,1704891057650,-1187.57,0.0003041,2]
[311052967,1704891057661,-500.0,0.0003041,2]
[311052968,1704891057676,-500.0,0.0003041,2]
[311052969,1704891057686,-982.23,0.0003041,2]
[311052970,1704891057698,-960.81,0.0003041,2]
[311052971,1704891057708,-500.0,0.0003041,2]
[311052972,1704891057718,-1435.01,0.0003041,2]
[311052973,1704891057728,-500.0,0.0003041,2]
[311052974,1704891057738,-1207.08,0.0003041,2]
[311052975,1704891057748,-771.19,0.0003041,2]
[311052976,1704891057757,-1012.64,0.0003041,2]
[311052977,1704891057767,-500.0,0.0003041,2]
[311052978,1704891057777,-500.0,0.0003041,2]
[311052979,1704891057787,-500.0,0.0003041,2]
[311052980,1704891057800,-566.51436408,0.0003041,2]
[311052981,1704891057810,-1395.58,0.0003041,2]
[311052982,1704891057820,-1179.08,0.0003041,2]
[311052983,1704891057832,-1128.18,0.0003041,2]
[311052984,1704891057842,-524.56,0.0003041,2]
[311052985,1704891057854,-1055.12,0.0003041,2]
[311052986,1704891057863,-620.01,0.0003041,2]
[311052987,1704891057873,-1511.92,0.0003041,2]
[311052988,1704891057882,-835.1,0.0003041,2]
[311052989,1704891057892,-1185.27,0.0003041,2]
[311052990,1704891057902,-1387.63,0.0003041,2]
[311052991,1704891057912,-904.42,0.0003041,2]
[311052992,1704891057922,-500.0,0.0003041,2]
[311052993,1704891057932,-525.95,0.0003041,2]
[311052994,1704891057942,-490.15077992,0.0003041,2]
[311052995,1704891057952,-1196.53,0.0003041,2]
[311052996,1704891057962,-500.0,0.0003041,2]
[311052997,1704891057972,-1787.03,0.0003041,2]
[311052998,1704891057981,-674.1,0.0003041,2]
[311052999,1704891057991,-1077.63,0.0003041,2]
[311053000,1704891058001,-755.38,0.0003041,2]
[311053001,1704891058010,-500.0,0.0003041,2]
[311053002,1704891058020,-500.0,0.0003041,2]
[311053003,1704891058029,-550.21362095,0.0003041,2]
[311053004,1704891058039,-581.62,0.0003041,2]
[311053005,1704891058049,-1257.2,0.0003041,2]
[311053006,1704891058058,-1024.85,0.0003041,2]
[311053007,1704891058068,-500.0,0.0003041,2]
[311053008,1704891058078,-500.0,0.0003041,2]
[311053009,1704891058088,-836.69,0.0003041,2]
[311053010,1704891058097,-500.0,0.0003041,2]
[311053011,1704891058109,-782.38,0.0003041,2]
[311053012,1704891058119,-525.09,0.0003041,2]
[311053013,1704891058129,-500.0,0.0003041,2]
[311053014,1704891058139,-1749.35,0.0003041,2]
[311053015,1704891058148,-1000.33,0.0003041,2]
[311053016,1704891058159,-604.42,0.0003041,2]
[311053017,1704891058169,-500.0,0.0003041,2]
[311053018,1704891058179,-500.0,0.0003041,2]
[311053019,1704891058189,-500.0,0.0003041,2]
[311053020,1704891058198,-500.0,0.0003041,2]
[311053021,1704891058208,-765.38,0.0003041,2]
[311053022,1704891058218,-878.75,0.0003041,2]
[311053023,1704891058228,-500.0,0.0003041,2]
[311053024,1704891058238,-679.72,0.0003041,2]
[311053025,1704891058248,-1881.36,0.0003041,2]
[311053026,1704891058258,-500.0,0.0003041,2]
[311053027,1704891058268,-631.79,0.0003041,2]
[311053028,1704891058278,-500.0,0.0003041,2]
[311053029,1704891058289,-500.0,0.0003041,7]
[311053030,1704891058301,-500.0,0.0003041,2]
[311053031,1704891058311,-500.0,0.0003041,2]
[311053032,1704891058320,-500.0,0.0003041,2]
[311053033,1704891058330,-500.0,0.0003041,2]
[311053034,1704891058782,-1166.65,0.0003041,2]
[311053035,1704891058792,-756.6,0.0003041,2]
[311053036,1704891058801,-2844.34,0.0003041,2]
[311053037,1704891058811,-641.96,0.0003041,2]
[311053038,1704891058821,-500.0,0.0003041,2]
[311053039,1704891058830,-500.0,0.0003041,2]
[311053040,1704891058839,-1044.01,0.0003041,2]
[311053041,1704891058849,-639.29801682,0.0003041,2]
[311053042,1704891058860,-500.0,0.0003041,2]
[311053043,1704891058870,-500.0,0.0003041,2]
[311053044,1704891058879,-500.0,0.0003041,2]
[311053045,1704891058889,-1332.76,0.0003041,2]
[311053046,1704891058898,-500.0,0.0003041,2]
[311053047,1704891058908,-1000.0,0.0003041,2]
[311053048,1704891058917,-1244.23,0.0003041,2]
[311053049,1704891058927,-729.63,0.0003041,2]
[311053050,1704891058936,-500.0,0.0003041,2]
[311053051,1704891058946,-500.0,0.0003041,2]
[311053052,1704891058955,-757.76,0.0003041,2]
[311053053,1704891058965,-500.0,0.0003041,2]
[311053054,1704891058974,-500.0,0.0003041,2]
[311053055,1704891058983,-500.0,0.0003041,2]
[311053056,1704891058993,-500.0,0.0003041,2]
[311053057,1704891059002,-1044.13,0.0003041,2]
[311053058,1704891059012,-1127.84,0.0003041,2]
[311053059,1704891059022,-1154.12,0.0003041,2]
[311053060,1704891059031,-551.43,0.0003041,2]
[311053061,1704891059041,-500.0,0.0003041,2]
[311053062,1704891059051,-1354.13,0.0003041,2]
[311053063,1704891059060,-500.0,0.0003041,2]
[311053064,1704891059070,-500.0,0.0003041,2]
[311053065,1704891059079,-500.0,0.0003041,2]
[311053066,1704891059089,-1181.63,0.0003041,2]
[311053067,1704891059099,-638.51,0.0003041,2]
[311053068,1704891059110,-862.28,0.0003041,2]
[311053069,1704891059120,-757.94,0.0003041,2]
[311053070,1704891059130,-1015.59,0.0003041,2]
[311053071,1704891059140,-500.0,0.0003041,2]
[311053072,1704891059150,-848.07,0.0003041,2]
[311053073,1704891059160,-823.4,0.0003041,2]
[311053074,1704891059170,-500.0,0.0003041,2]
[311053075,1704891059179,-783.14,0.0003041,2]
[311053076,1704891059189,-500.0,0.0003041,2]
[311053077,1704891059199,-500.0,0.0003041,2]
[311053078,1704891059208,-1634.17,0.0003041,2]
[311053079,1704891059218,-892.34,0.0003041,2]
[311053080,1704891059228,-500.0,0.0003041,2]
[311053081,1704891059238,-500.0,0.0003041,2]
[311053082,1704891059249,-500.0,0.0003041,2]
[311053083,1704891059259,-1731.94,0.0003041,2]
[311053084,1704891059269,-1097.53,0.0003041,2]
[311053085,1704891059279,-1300.74,0.0003041,2]
[311053086,1704891059292,-500.0,0.0003041,2]
[311053087,1704891059305,-1118.35,0.0003041,2]
[311053088,1704891059314,-821.71,0.0003041,2]
[311053089,1704891059324,-1115.5,0.0003041,2]
[311053090,1704891059335,-799.47,0.0003041,2]
[311053091,1704891059345,-500.0,0.0003041,2]
[311053092,1704891059357,-500.0,0.0003041,2]
[311053093,1704891059366,-500.0,0.0003041,2]
[311053094,1704891059376,-500.0,0.0003041,2]
[311053095,1704891059386,-1438.57,0.0003041,2]
[311053096,1704891059395,-1466.84,0.0003041,2]
[311053097,1704891059405,-500.0,0.0003041,2]
[311053098,1704891059415,-652.51,0.0003041,2]
[311053099,1704891059424,-500.0,0.0003041,2]
[311053100,1704891059434,-500.0,0.0003041,2]
[311053101,1704891059443,-1106.08,0.0003041,2]
[311053102,1704891059453,-500.0,0.0003041,2]
[311053103,1704891059464,-500.0,0.0003041,2]
[311053104,1704891059474,-1804.0,0.0003041,2]
[311053105,1704891059484,-1166.35,0.0003041,2]
[311053106,1704891059494,-500.0,0.0003041,2]
[311053107,1704891059504,-1134.06,0.0003041,2]
[311053108,1704891059513,-1196.42,0.0003041,2]
[311053109,1704891059523,-545.73,0.0003041,2]
[311053110,1704891059533,-848.12,0.0003041,2]
[311053111,1704891059543,-500.0,0.0003041,2]
[311053112,1704891059553,-714.75,0.0003041,2]
[311053113,1704891059562,-500.0,0.0003041,2]
[311053114,1704891059572,-1566.38,0.0003041,2]
[311053115,1704891059581,-907.54,0.0003041,2]
[311053116,1704891059591,-556.57,0.0003041,2]
[311053117,1704891059602,-456.98072671,0.0003041,2]
[311053118,1704891059611,-500.0,0.0003041,2]
[311053119,1704891059621,-1841.24,0.0003041,2]
[311053120,1704891059630,-924.42,0.0003041,2]
[311053121,1704891059641,-500.0,0.0003041,2]
[311053122,1704891059650,-500.0,0.0003041,2]
[311053123,1704891059660,-2743.08,0.0003041,2]
[311053124,1704891059671,-500.0,0.0003041,2]
[311053125,1704891059680,-500.0,0.0003041,2]
[311053126,1704891059690,-1407.91,0.0003041,2]
[311053127,1704891059700,-627.59,0.0003041,2]
[311053128,1704891059710,-1648.35,0.0003041,2]
[311053129,1704891059719,-546.87,0.0003041,2]
[311053130,1704891059729,-1615.48,0.0003041,2]
[311053131,1704891059739,-574.07,0.0003041,2]
[311053132,1704891059749,-1687.92,0.0003041,2]
[311053133,1704891059758,-555.68,0.0003041,2]
[311053134,1704891059767,-997.75,0.0003041,2]
[311053135,1704891059777,-593.65986704,0.0003041,2]
[311053136,1704891059787,-1436.16,0.0003041,2]
[311053137,1704891059797,-783.23,0.0003041,2]
[311053138,1704891059807,-500.0,0.0003041,2]
[311053139,1704891059817,-893.83,0.0003041,2]
[311053140,1704891059827,-511.25994099,0.0003041,2]
[311053141,1704891059837,-608.29,0.0003041,2]
[311053142,1704891059847,-1132.03,0.0003041,2]
[311053143,1704891059858,-500.0,0.0003041,2]
[311053144,1704891059867,-1380.57,0.0003041,2]
[311053145,1704891059876,-933.87,0.0003041,2]
[311053146,1704891059885,-500.0,0.0003041,2]
[311053147,1704891059895,-500.0,0.0003041,2]
[311053148,1704891059904,-957.42,0.0003041,2]
[311053149,1704891059914,-995.9,0.0003041,2]
[311053150,1704891059925,-500.0,0.0003041,2]
[311053151,1704891059934,-1856.22,0.0003041,2]
[311053152,1704891059944,-895.94,0.0003041,2]
[311053153,1704891059954,-1480.74,0.0003041,2]
[311053154,1704891059963,-500.0,0.0003041,2]
[311053155,1704891059973,-776.38,0.0003041,2]
[311053156,1704891059982,-500.0,0.0003041,2]
[311053157,1704891059991,-1298.12,0.0003041,2]
[311053158,1704891060001,-500.0,0.0003041,2]
[311053159,1704891060010,-500.0,0.0003041,2]
[311053160,1704891060019,-333.27,0.0003041,2]
[311053161,1704891060029,-1188.98,0.0003041,2]
[311053162,1704891060038,-500.0,0.0003041,2]
[311053163,1704891060048,-791.87,0.0003041,2]
[311053164,1704891060058,-500.0,0.0003041,2]
[311053165,1704891060067,-577.69,0.0003041,2]
[311053166,1704891060077,-700.71,0.0003041,2]
[311053167,1704891060087,-682.9,0.0003041,2]
[311053168,1704891060096,-1037.2,0.0003041,2]
[311053169,1704891060108,-500.0,0.0003041,2]
[311053170,1704891060117,-602.31661828,0.0003041,2]
[311053171,1704891060126,-265.85841618,0.0003041,2]
[311053172,1704891060136,-500.0,0.0003041,2]
[311053173,1704891060145,-500.0,0.0003041,2]
[311053174,1704891060155,-923.76,0.0003041,2]
[311053175,1704891060165,-1290.28,0.0003041,2]
[311053176,1704891060175,-500.0,0.0003041,2]
[311053177,1704891060185,-694.02,0.0003041,2]
[311053178,1704891060194,-672.12,0.0003041,2]
[311053179,1704891060204,-500.0,0.0003041,2]
[311053180,1704891060213,-751.24,0.0003041,2]
[311053181,1704891060223,-500.0,0.0003041,2]
[311053182,1704891060232,-500.0,0.0003041,2]
[311053183,1704891060242,-791.74,0.0003041,2]
[311053184,1704891060252,-2135.41,0.0003041,2]
[311053185,1704891060262,-500.0,0.0003041,2]
[311053186,1704891060272,-630.74,0.0003041,2]
[311053187,1704891060282,-500.0,0.0003041,2]
[311053188,1704891060292,-1065.89,0.0003041,2]
[311053189,1704891060304,-500.0,0.0003041,2]
[311053190,1704891060314,-1611.31,0.0003041,2]
[311053191,1704891060323,-537.76,0.0003041,2]
[311053192,1704891060335,-500.0,0.0003041,2]
[311053193,1704891060344,-500.0,0.0003041,2]
[311053194,1704891060354,-500.0,0.0003041,2]
[311053195,1704891060364,-500.0,0.0003041,2]
[311053196,1704891060374,-500.0,0.0003041,2]
[311053197,1704891060385,-508.12,0.0003041,2]
[311053198,1704891060395,-500.0,0.0003041,2]
[311053199,1704891060405,-500.0,0.0003041,2]
[311053200,1704891060415,-1096.88,0.0003041,2]
[311053201,1704891060425,-500.0,0.0003041,2]
[311053202,1704891060434,-1235.12,0.0003041,2]
[311053203,1704891060443,-1332.96,0.0003041,2]
[311053204,1704891060453,-1351.54,0.0003041,2]
[311053205,1704891060462,-500.0,0.0003041,2]
[311053206,1704891060473,-500.0,0.0003041,2]
[311053207,1704891060482,-500.0,0.0003041,2]
[311053208,1704891060492,-525.51,0.0003041,2]
[311053209,1704891060501,-500.0,0.0003041,2]
[311053210,1704891060510,-500.0,0.0003041,2]
[311053211,1704891060520,-500.0,0.0003041,2]
[311053212,1704891060529,-500.0,0.0003041,2]
[311053213,1704891060538,-500.0,0.0003041,2]
[311053214,1704891060548,-500.0,0.0003041,2]
[311053215,1704891060557,-551.86,0.0003041,2]
[311053216,1704891060566,-500.0,0.0003041,2]
[311053217,1704891060576,-2153.22,0.0003041,2]
[311053218,1704891060585,-1551.48,0.0003041,2]
[311053219,1704891060594,-894.32,0.0003041,2]
[311053220,1704891060605,-784.54,0.0003041,2]
[311053221,1704891060614,-1823.35,0.0003041,2]
[311053222,1704891060624,-656.22,0.0003041,2]
[311053223,1704891060633,-500.0,0.0003041,2]
[311053224,1704891060643,-471.86354161,0.0003041,2]
[311053225,1704891060653,-500.0,0.0003041,2]
[311053226,1704891060664,-903.93,0.0003041,2]
[311053227,1704891060674,-500.0,0.0003041,2]
[311053228,1704891060684,-1466.91,0.0003041,2]
[311053229,1704891060694,-456.74036898,0.0003041,2]
[311053230,1704891060703,-1006.56,0.0003041,2]
[311053231,1704891060713,-1170.77,0.0003041,2]
[311053232,1704891060722,-500.0,0.0003041,2]
[311053233,1704891060732,-1655.17,0.0003041,2]
[311053234,1704891060742,-3133.81,0.0003041,2]
[311053235,1704891060752,-533.08,0.0003041,2]
[311053236,1704891060761,-208.10838401,0.0003041,2]
[311053237,1704891060771,-519.6221781,0.0003041,2]
[311053238,1704891060781,-761.32,0.0003041,2]
[311053239,1704891060791,-500.0,0.0003041,2]
[311053240,1704891060800,-500.0,0.0003041,2]
[311053241,1704891060810,-500.0,0.0003041,2]
[311053242,1704891060820,-500.0,0.0003041,2]
[311053243,1704891060830,-500.0,0.0003041,2]
[311053244,1704891060840,-500.0,0.0003041,2]
[311053245,1704891060850,-500.0,0.0003041,2]
[311053246,1704891060864,-1368.59,0.0003041,2]
[311053247,1704891060874,-661.49,0.0003041,2]
[311053248,1704891060884,-500.0,0.0003041,2]
[311053249,1704891060894,-1618.49,0.0003041,2]
[311053250,1704891060903,-500.0,0.0003041,2]
[311053251,1704891060913,-8919.11,0.0003041,2]
[311053252,1704891060923,-696.22,0.0003041,2]
[311053253,1704891060933,-813.18,0.0003041,2]
[311053254,1704891060942,-1000.0,0.0003041,2]
[311053255,1704891060952,-500.0,0.0003041,2]
[311053256,1704891060962,-916.52,0.0003041,2]
[311053257,1704891060971,-484.51,0.0003041,2]
[311053258,1704891060981,-500.0,0.0003041,2]
[311053259,1704891060991,-500.0,0.0003041,2]
[311053260,1704891061000,-500.0,0.0003041,2]
[311053261,1704891061010,-1010.96,0.0003041,2]
[311053262,1704891061019,-500.0,0.0003041,2]
[311053263,1704891061028,-500.0,0.0003041,2]
[311053264,1704891061039,-669.44,0.0003041,2]
[311053265,1704891061049,-1654.81,0.0003041,2]
[311053266,1704891061059,-500.0,0.0003041,2]
[311053267,1704891061069,-895.64,0.0003041,2]
[311053268,1704891061079,-5719.09,0.0003041,2]
[311053269,1704891061090,-500.0,0.0003041,2]
[311053270,1704891061103,-3241.68,0.0003041,2]
[311053271,1704891061114,-2147.06,0.0003041,2]
[311053272,1704891061123,-500.0,0.0003041,2]
[311053273,1704891061133,-4583.07,0.0003041,2]
[311053274,1704891061242,-500.0,0.0003041,2]
[311053275,1704891061252,-4104.47,0.0003041,2]
[311053276,1704891061262,-500.0,0.0003041,2]
[311053277,1704891061272,-1172.6,0.0003041,2]
[311053278,1704891061282,-500.0,0.0003041,2]
[311053279,1704891061291,-1135.8,0.0003041,2]
[311053280,1704891061303,-4864.49,0.0003041,2]
[311053281,1704891061312,-500.0,0.0003041,2]
[311053282,1704891061321,-1306.53,0.0003041,2]
[311053283,1704891061331,-605.42,0.0003041,2]
[311053284,1704891061340,-500.0,0.0003041,2]
[311053285,1704891061349,-613.66,0.0003041,2]
[311053286,1704891061362,-500.0,0.0003041,2]
[311053287,1704891061371,-1839.88,0.0003041,2]
[311053288,1704891061381,-3152.91,0.0003041,2]